[Event "Titled Tuesday Blitz August 16 Late 2022"]
[White "Harshavardhan G B"]
[Black "Sadovsky, Artem"]
[WhiteFideId "25059009"]
[BlackFideId "4155840"]
[WhiteElo "2429"]
[BlackElo "2276"]
[Result "1-0"]
[Round "01"]
[TimeControl "180+1"]
[Date "2022.08.18"]
[WhiteClock "0:00:00"]
[BlackClock "0:00:00"]

1. d4 {[%clk 0:00:00]}  g6 {[%clk 0:00:00]} 2. c4 {[%clk 0:00:00]}  Bg7 {[%clk 0:00:00]} 3. Nc3 {[%clk 0:00:00]}  d6 {[%clk 0:00:00]} 4. e4 {[%clk 0:00:00]}  e5 {[%clk 0:00:00]} 5. d5 {[%clk 0:00:00]}  f5 {[%clk 0:00:00]} 6. Nf3 {[%clk 0:00:00]}  Nf6 {[%clk 0:00:00]} 7. exf5 {[%clk 0:00:00]}  gxf5 {[%clk 0:00:00]} 8. Ng5 {[%clk 0:00:00]}  O-O {[%clk 0:00:00]} 9. Be2 {[%clk 0:00:00]}  Qe8 {[%clk 0:00:00]} 10. f4 {[%clk 0:00:00]}  h6 {[%clk 0:00:00]} 11. Nf3 {[%clk 0:00:00]}  Ne4 {[%clk 0:00:00]} 12. O-O {[%clk 0:00:00]}  Nxc3 {[%clk 0:00:00]} 13. bxc3 {[%clk 0:00:00]}  Na6 {[%clk 0:00:00]} 14. fxe5 {[%clk 0:00:00]}  dxe5 {[%clk 0:00:00]} 15. Nh4 {[%clk 0:00:00]}  Qe7 {[%clk 0:00:00]} 16. Ng6 {[%clk 0:00:00]}  Qc5+ {[%clk 0:00:00]} 17. Kh1 {[%clk 0:00:00]}  Rf6 {[%clk 0:00:00]} 18. Nxe5 {[%clk 0:00:00]}  Rf8 {[%clk 0:00:00]} 19. Bf4 {[%clk 0:00:00]}  Qc6 {[%clk 0:00:00]} 20. dxc6 {[%clk 0:00:00]}  b5 {[%clk 0:00:00]} 21. cxb5 {[%clk 0:00:00]}  Nc5 {[%clk 0:00:00]} 22. Bc4+ {[%clk 0:00:00]}  Ne6 {[%clk 0:00:00]} 23. Ng6 {[%clk 0:00:00]}  Rf7 {[%clk 0:00:00]} 24. Re1 {[%clk 0:00:00]}  Kh7 {[%clk 0:00:00]} 25. Bxe6 {[%clk 0:00:00]}  Bxe6 {[%clk 0:00:00]} 26. Rxe6 {[%clk 0:00:00]}  Re8 {[%clk 0:00:00]} 27. Rxe8 {[%clk 0:00:00]}  Rf8 {[%clk 0:00:00]} 28. Nxf8+ {[%clk 0:00:00]}  Kg8 {[%clk 0:00:00]} 29. Qd7 {[%clk 0:00:00]}  Bxf8 {[%clk 0:00:00]} 30. Bxh6 {[%clk 0:00:00]}  f4 {[%clk 0:00:00]} 31. Rxf8# {[%clk 0:00:00]} 1-0


[Site "https://www.chess.com"]

[Event "Titled Tuesday Blitz August 16 Late 2022"]
[White "Jeet, Jain"]
[Black "Tarnowska, Aleksandra"]
[WhiteFideId "5073022"]
[BlackFideId "1180967"]
[WhiteElo "2055"]
[BlackElo "1700"]
[Result "1-0"]
[Round "01"]
[TimeControl "180+1"]
[Date "2022.08.18"]
[WhiteClock "0:00:00"]
[BlackClock "0:00:00"]

1. e4 {[%clk 0:00:00]}  c5 {[%clk 0:00:00]} 2. Nc3 {[%clk 0:00:00]}  d6 {[%clk 0:00:00]} 3. d4 {[%clk 0:00:00]}  cxd4 {[%clk 0:00:00]} 4. Qxd4 {[%clk 0:00:00]}  Nc6 {[%clk 0:00:00]} 5. Qd2 {[%clk 0:00:00]}  g6 {[%clk 0:00:00]} 6. b3 {[%clk 0:00:00]}  Bg7 {[%clk 0:00:00]} 7. Bb2 {[%clk 0:00:00]}  Nf6 {[%clk 0:00:00]} 8. O-O-O {[%clk 0:00:00]}  O-O {[%clk 0:00:00]} 9. f4 {[%clk 0:00:00]}  Bg4 {[%clk 0:00:00]} 10. Nf3 {[%clk 0:00:00]}  Qa5 {[%clk 0:00:00]} 11. Kb1 {[%clk 0:00:00]}  Nb4 {[%clk 0:00:00]} 12. a3 {[%clk 0:00:00]}  Nc6 {[%clk 0:00:00]} 13. h3 {[%clk 0:00:00]}  Bxf3 {[%clk 0:00:00]} 14. gxf3 {[%clk 0:00:00]}  Nh5 {[%clk 0:00:00]} 15. f5 {[%clk 0:00:00]}  Ne5 {[%clk 0:00:00]} 16. Be2 {[%clk 0:00:00]}  Rac8 {[%clk 0:00:00]} 17. Nd5 {[%clk 0:00:00]}  Qd8 {[%clk 0:00:00]} 18. f4 {[%clk 0:00:00]}  Nd7 {[%clk 0:00:00]} 19. Bxh5 {[%clk 0:00:00]}  Bxb2 {[%clk 0:00:00]} 20. Kxb2 {[%clk 0:00:00]}  gxh5 {[%clk 0:00:00]} 21. Rhg1+ {[%clk 0:00:00]}  Kh8 {[%clk 0:00:00]} 22. Rg5 {[%clk 0:00:00]}  Nf6 {[%clk 0:00:00]} 23. Nxf6 {[%clk 0:00:00]}  exf6 {[%clk 0:00:00]} 24. Rxh5 {[%clk 0:00:00]}  Qe7 {[%clk 0:00:00]} 25. Qe2 {[%clk 0:00:00]}  Rg8 {[%clk 0:00:00]} 26. Rh6 {[%clk 0:00:00]}  Rg3 {[%clk 0:00:00]} 27. Qh5 {[%clk 0:00:00]}  Rg7 {[%clk 0:00:00]} 28. Rg1 {[%clk 0:00:00]}  Rcg8 {[%clk 0:00:00]} 29. Re1 {[%clk 0:00:00]}  d5 {[%clk 0:00:00]} 30. e5 {[%clk 0:00:00]}  fxe5 {[%clk 0:00:00]} 31. f6 {[%clk 0:00:00]} 1-0


[Site "https://www.chess.com"]

[Event "Titled Tuesday Blitz August 16 Late 2022"]
[White "Kamsky, Gata"]
[Black "Postnikov, Daniil"]
[WhiteFideId "2000024"]
[BlackFideId "4166329"]
[WhiteElo "2666"]
[BlackElo "2261"]
[Result "1-0"]
[Round "01"]
[TimeControl "180+1"]
[Date "2022.08.16"]
[WhiteClock "0:00:38"]
[BlackClock "0:00:17"]

1. e4 {[%clk 0:03:00]}  e6 {[%clk 0:02:59]} 2. d4 {[%clk 0:02:56]}  d5 {[%clk 0:02:58]} 3. e5 {[%clk 0:02:56]}  c5 {[%clk 0:02:55]} 4. c3 {[%clk 0:02:57]}  Nc6 {[%clk 0:02:55]} 5. Nf3 {[%clk 0:02:57]}  Qb6 {[%clk 0:02:55]} 6. a3 {[%clk 0:02:56]}  f6 {[%clk 0:02:52]} 7. Bd3 {[%clk 0:02:45]}  fxe5 {[%clk 0:02:48]} 8. dxe5 {[%clk 0:02:41]}  c4 {[%clk 0:02:48]} 9. Bc2 {[%clk 0:02:40]}  g6 {[%clk 0:02:48]} 10. O-O {[%clk 0:02:39]}  Bg7 {[%clk 0:02:47]} 11. Qe2 {[%clk 0:01:56]}  Nh6 {[%clk 0:02:41]} 12. Be3 {[%clk 0:01:52]}  Qc7 {[%clk 0:02:38]} 13. Bf4 {[%clk 0:01:45]}  O-O {[%clk 0:02:35]} 14. Bg3 {[%clk 0:01:45]}  Qb6 {[%clk 0:02:07]} 15. Ra2 {[%clk 0:01:42]}  Nf5 {[%clk 0:02:03]} 16. Nbd2 {[%clk 0:01:40]}  Bd7 {[%clk 0:02:00]} 17. Bxf5 {[%clk 0:01:28]}  Rxf5 {[%clk 0:01:58]} 18. Re1 {[%clk 0:01:27]}  g5 {[%clk 0:01:41]} 19. h3 {[%clk 0:01:26]}  Raf8 {[%clk 0:01:25]} 20. Nf1 {[%clk 0:01:24]}  h6 {[%clk 0:01:18]} 21. N1h2 {[%clk 0:01:20]}  Be8 {[%clk 0:01:13]} 22. Raa1 {[%clk 0:01:17]}  Bh5 {[%clk 0:01:13]} 23. Ng4 {[%clk 0:01:16]}  Bxg4 {[%clk 0:01:04]} 24. hxg4 {[%clk 0:01:16]}  R5f7 {[%clk 0:01:05]} 25. Rad1 {[%clk 0:01:15]}  Qc5 {[%clk 0:00:59]} 26. Nd4 {[%clk 0:01:11]}  Nxd4 {[%clk 0:00:58]} 27. Rxd4 {[%clk 0:01:11]}  b5 {[%clk 0:00:57]} 28. f3 {[%clk 0:01:09]}  a5 {[%clk 0:00:55]} 29. Bf2 {[%clk 0:01:10]}  Qc7 {[%clk 0:00:54]} 30. Rdd1 {[%clk 0:01:08]}  Rb8 {[%clk 0:00:53]} 31. Qc2 {[%clk 0:01:07]}  b4 {[%clk 0:00:48]} 32. axb4 {[%clk 0:01:07]}  axb4 {[%clk 0:00:49]} 33. Bd4 {[%clk 0:01:06]}  Rf4 {[%clk 0:00:25]} 34. Ra1 {[%clk 0:01:03]}  Rb7 {[%clk 0:00:16]} 35. Qg6 {[%clk 0:01:00]}  Qc8 {[%clk 0:00:12]} 36. Ra6 {[%clk 0:00:57]}  Re7 {[%clk 0:00:12]} 37. Rea1 {[%clk 0:00:56]}  Rf8 {[%clk 0:00:08]} 38. cxb4 {[%clk 0:00:55]}  Qe8 {[%clk 0:00:05]} 39. Qxe8 {[%clk 0:00:50]}  Rfxe8 {[%clk 0:00:04]} 40. b5 {[%clk 0:00:51]}  Rb7 {[%clk 0:00:04]} 41. b6 {[%clk 0:00:51]}  Reb8 {[%clk 0:00:04]} 42. Ra8 {[%clk 0:00:50]}  Bf8 {[%clk 0:00:02]} 43. Rxb8 {[%clk 0:00:49]}  Rxb8 {[%clk 0:00:03]} 44. Ra7 {[%clk 0:00:48]}  Bb4 {[%clk 0:00:04]} 45. Kf2 {[%clk 0:00:47]}  Bf8 {[%clk 0:00:04]} 46. g3 {[%clk 0:00:47]}  Bb4 {[%clk 0:00:05]} 47. f4 {[%clk 0:00:47]}  gxf4 {[%clk 0:00:06]} 48. gxf4 {[%clk 0:00:47]}  Bd2 {[%clk 0:00:07]} 49. f5 {[%clk 0:00:46]}  exf5 {[%clk 0:00:06]} 50. gxf5 {[%clk 0:00:46]}  Bg5 {[%clk 0:00:07]} 51. f6 {[%clk 0:00:44]}  Kf8 {[%clk 0:00:06]} 52. e6 {[%clk 0:00:44]}  c3 {[%clk 0:00:07]} 53. bxc3 {[%clk 0:00:44]}  Bf4 {[%clk 0:00:07]} 54. b7 {[%clk 0:00:41]}  Bd6 {[%clk 0:00:07]} 55. Ra8 {[%clk 0:00:41]}  Ke8 {[%clk 0:00:06]} 56. Ba7 {[%clk 0:00:41]}  Rxa8 {[%clk 0:00:07]} 57. bxa8=R+ {[%clk 0:00:40]}  Bb8 {[%clk 0:00:06]} 58. Bxb8 {[%clk 0:00:39]}  Kf8 {[%clk 0:00:04]} 59. Kf3 {[%clk 0:00:39]}  Ke8 {[%clk 0:00:04]} 60. Kg4 {[%clk 0:00:39]}  Kf8 {[%clk 0:00:05]} 61. Kh5 {[%clk 0:00:39]}  Ke8 {[%clk 0:00:06]} 62. Kxh6 {[%clk 0:00:39]}  Kf8 {[%clk 0:00:07]} 63. Kg6 {[%clk 0:00:40]}  Ke8 {[%clk 0:00:07]} 64. Kf5 {[%clk 0:00:40]}  Kf8 {[%clk 0:00:08]} 65. Ke5 {[%clk 0:00:40]}  Ke8 {[%clk 0:00:09]} 66. Kxd5 {[%clk 0:00:40]}  Kf8 {[%clk 0:00:10]} 67. c4 {[%clk 0:00:41]}  Ke8 {[%clk 0:00:11]} 68. c5 {[%clk 0:00:41]}  Kf8 {[%clk 0:00:11]} 69. c6 {[%clk 0:00:42]}  Ke8 {[%clk 0:00:12]} 70. c7 {[%clk 0:00:42]}  Kf8 {[%clk 0:00:13]} 71. c8=B {[%clk 0:00:41]}  Ke8 {[%clk 0:00:14]} 72. Bd7+ {[%clk 0:00:40]}  Kf8 {[%clk 0:00:15]} 73. e7+ {[%clk 0:00:40]}  Kg8 {[%clk 0:00:14]} 74. e8=N {[%clk 0:00:39]}  Kh7 {[%clk 0:00:15]} 75. f7 {[%clk 0:00:39]}  Kh6 {[%clk 0:00:16]} 76. f8=N {[%clk 0:00:38]}  Kg5 {[%clk 0:00:17]} 1-0


[Site "https://www.chess.com"]

[Event "Titled Tuesday Blitz August 16 Late 2022"]
[White "Kevlishvili, Robby"]
[Black "Yedidia, Daniel"]
[WhiteFideId "1040634"]
[BlackFideId "30905907"]
[WhiteElo "2585"]
[BlackElo "2525"]
[Result "1/2-1/2"]
[Round "01"]
[TimeControl "180+1"]
[Date "2022.08.16"]
[WhiteClock "0:00:09"]
[BlackClock "0:00:16"]

1. e4 {[%clk 0:02:57]}  e5 {[%clk 0:03:00]} 2. Nf3 {[%clk 0:02:57]}  Nc6 {[%clk 0:03:00]} 3. Bb5 {[%clk 0:02:56]}  a6 {[%clk 0:03:01]} 4. Ba4 {[%clk 0:02:57]}  Nf6 {[%clk 0:03:01]} 5. d3 {[%clk 0:02:58]}  Be7 {[%clk 0:03:02]} 6. Bxc6 {[%clk 0:02:55]}  dxc6 {[%clk 0:02:56]} 7. Nxe5 {[%clk 0:02:55]}  O-O {[%clk 0:02:57]} 8. O-O {[%clk 0:02:55]}  Nd7 {[%clk 0:02:52]} 9. Nxd7 {[%clk 0:02:55]}  Bxd7 {[%clk 0:02:53]} 10. Nc3 {[%clk 0:02:55]}  f5 {[%clk 0:02:53]} 11. Bd2 {[%clk 0:02:50]}  f4 {[%clk 0:02:50]} 12. f3 {[%clk 0:02:29]}  Bc5+ {[%clk 0:02:49]} 13. Kh1 {[%clk 0:02:29]}  Qh4 {[%clk 0:02:44]} 14. Qe1 {[%clk 0:02:26]}  Qh5 {[%clk 0:02:43]} 15. Ne2 {[%clk 0:02:23]}  g5 {[%clk 0:02:31]} 16. Bb4 {[%clk 0:02:19]}  Be3 {[%clk 0:02:22]} 17. Bd2 {[%clk 0:02:16]}  Bxd2 {[%clk 0:01:57]} 18. Qxd2 {[%clk 0:02:16]}  Rf6 {[%clk 0:01:58]} 19. g4 {[%clk 0:01:49]}  fxg3 {[%clk 0:01:28]} 20. Nxg3 {[%clk 0:01:48]}  Qh4 {[%clk 0:01:23]} 21. Rf2 {[%clk 0:01:33]}  Raf8 {[%clk 0:01:21]} 22. Qe3 {[%clk 0:01:29]}  Bg4 {[%clk 0:00:52]} 23. Raf1 {[%clk 0:01:24]}  Bh3 {[%clk 0:00:48]} 24. Rg1 {[%clk 0:01:24]}  Bg4 {[%clk 0:00:38]} 25. Nf5 {[%clk 0:00:36]}  Bxf5 {[%clk 0:00:38]} 26. exf5 {[%clk 0:00:37]}  Rxf5 {[%clk 0:00:39]} 27. Rfg2 {[%clk 0:00:37]}  h6 {[%clk 0:00:37]} 28. Qe6+ {[%clk 0:00:37]}  Kg7 {[%clk 0:00:34]} 29. Rg3 {[%clk 0:00:24]}  Rxf3 {[%clk 0:00:28]} 30. Qe5+ {[%clk 0:00:20]}  Kg8 {[%clk 0:00:19]} 31. Rxg5+ {[%clk 0:00:14]}  hxg5 {[%clk 0:00:17]} 32. Rxg5+ {[%clk 0:00:15]}  Qxg5 {[%clk 0:00:15]} 33. Qxg5+ {[%clk 0:00:16]}  Kh7 {[%clk 0:00:16]} 34. Qh5+ {[%clk 0:00:13]}  Kg7 {[%clk 0:00:16]} 35. Qg4+ {[%clk 0:00:13]}  Kh8 {[%clk 0:00:16]} 36. Qd4+ {[%clk 0:00:13]}  Kh7 {[%clk 0:00:16]} 37. Kg2 {[%clk 0:00:13]}  R3f7 {[%clk 0:00:14]} 38. Qe4+ {[%clk 0:00:13]}  Kh8 {[%clk 0:00:15]} 39. Qe5+ {[%clk 0:00:13]}  Kh7 {[%clk 0:00:15]} 40. h4 {[%clk 0:00:10]}  Rg7+ {[%clk 0:00:15]} 41. Kh3 {[%clk 0:00:08]}  Rf3+ {[%clk 0:00:14]} 42. Kh2 {[%clk 0:00:08]}  Rf2+ {[%clk 0:00:15]} 43. Kh3 {[%clk 0:00:09]}  Rf3+ {[%clk 0:00:15]} 44. Kh2 {[%clk 0:00:09]}  Rf2+ {[%clk 0:00:16]} 45. Kh3 {[%clk 0:00:09]}  Rf3+ {[%clk 0:00:16]} 1/2-1/2


[Site "https://www.chess.com"]

[Event "Titled Tuesday Blitz August 16 Late 2022"]
[White "Kravtsiv, Martyn"]
[Black "Kopczynski, Michal"]
[WhiteFideId "14113147"]
[BlackFideId "1124200"]
[WhiteElo "2694"]
[BlackElo "2235"]
[Result "1-0"]
[Round "01"]
[TimeControl "180+1"]
[Date "2022.08.16"]
[WhiteClock "0:00:06"]
[BlackClock "0:00:01"]

1. e4 {[%clk 0:03:00]}  c5 {[%clk 0:02:59]} 2. Nf3 {[%clk 0:03:00]}  d6 {[%clk 0:02:59]} 3. Bb5+ {[%clk 0:02:59]}  Bd7 {[%clk 0:02:59]} 4. Bxd7+ {[%clk 0:02:58]}  Nxd7 {[%clk 0:03:00]} 5. O-O {[%clk 0:02:57]}  g6 {[%clk 0:03:00]} 6. c3 {[%clk 0:02:42]}  Bg7 {[%clk 0:03:00]} 7. d4 {[%clk 0:02:42]}  Ngf6 {[%clk 0:03:00]} 8. Qe2 {[%clk 0:02:41]}  e5 {[%clk 0:02:57]} 9. Na3 {[%clk 0:02:38]}  O-O {[%clk 0:02:53]} 10. dxe5 {[%clk 0:02:25]}  dxe5 {[%clk 0:02:52]} 11. Rd1 {[%clk 0:02:25]}  Qc7 {[%clk 0:02:46]} 12. Nb5 {[%clk 0:01:53]}  Qa5 {[%clk 0:02:43]} 13. Nd6 {[%clk 0:01:50]}  Qb6 {[%clk 0:02:38]} 14. Bg5 {[%clk 0:01:48]}  h6 {[%clk 0:02:31]} 15. Bxf6 {[%clk 0:01:47]}  Nxf6 {[%clk 0:02:31]} 16. Nxe5 {[%clk 0:01:45]}  Rad8 {[%clk 0:02:25]} 17. Ndxf7 {[%clk 0:01:38]}  Rxf7 {[%clk 0:02:18]} 18. Qc4 {[%clk 0:01:36]}  Rf8 {[%clk 0:02:05]} 19. Nxg6 {[%clk 0:01:19]}  Re8 {[%clk 0:02:01]} 20. e5 {[%clk 0:01:16]}  Nh5 {[%clk 0:01:37]} 21. Qg4 {[%clk 0:00:58]}  Qxb2 {[%clk 0:01:19]} 22. f3 {[%clk 0:00:42]}  Qxc3 {[%clk 0:00:58]} 23. Qxh5 {[%clk 0:00:41]}  Qe3+ {[%clk 0:00:48]} 24. Kh1 {[%clk 0:00:39]}  Re6 {[%clk 0:00:42]} 25. Rd8+ {[%clk 0:00:15]}  Kh7 {[%clk 0:00:42]} 26. Nh4 {[%clk 0:00:14]}  Qxe5 {[%clk 0:00:38]} 27. Qxe5 {[%clk 0:00:14]}  Rxe5 {[%clk 0:00:31]} 28. Rad1 {[%clk 0:00:12]}  Bf6 {[%clk 0:00:28]} 29. R8d7 {[%clk 0:00:11]}  Kg8 {[%clk 0:00:21]} 30. g3 {[%clk 0:00:11]}  Rxd7 {[%clk 0:00:16]} 31. Rxd7 {[%clk 0:00:10]}  Bxh4 {[%clk 0:00:13]} 32. gxh4 {[%clk 0:00:11]}  Re1+ {[%clk 0:00:13]} 33. Kg2 {[%clk 0:00:11]}  Re2+ {[%clk 0:00:14]} 34. Kg3 {[%clk 0:00:11]}  Rxa2 {[%clk 0:00:15]} 35. Rxb7 {[%clk 0:00:11]}  c4 {[%clk 0:00:14]} 36. Rc7 {[%clk 0:00:12]}  a5 {[%clk 0:00:11]} 37. Rxc4 {[%clk 0:00:11]}  Kf7 {[%clk 0:00:11]} 38. Rc6 {[%clk 0:00:11]}  Kg7 {[%clk 0:00:11]} 39. h5 {[%clk 0:00:11]}  a4 {[%clk 0:00:11]} 40. Rg6+ {[%clk 0:00:11]}  Kh7 {[%clk 0:00:12]} 41. Ra6 {[%clk 0:00:11]}  a3 {[%clk 0:00:12]} 42. Ra7+ {[%clk 0:00:10]}  Kg8 {[%clk 0:00:11]} 43. h4 {[%clk 0:00:11]}  Ra1 {[%clk 0:00:11]} 44. Kf4 {[%clk 0:00:11]}  a2 {[%clk 0:00:12]} 45. Kf5 {[%clk 0:00:09]}  Kf8 {[%clk 0:00:10]} 46. f4 {[%clk 0:00:08]}  Ke8 {[%clk 0:00:10]} 47. Kf6 {[%clk 0:00:08]}  Kd8 {[%clk 0:00:11]} 48. f5 {[%clk 0:00:08]}  Ke8 {[%clk 0:00:10]} 49. Ra8+ {[%clk 0:00:07]}  Kd7 {[%clk 0:00:10]} 50. Ra3 {[%clk 0:00:08]}  Kd6 {[%clk 0:00:09]} 51. Kf7 {[%clk 0:00:07]}  Rf1 {[%clk 0:00:07]} 52. Rxa2 {[%clk 0:00:07]}  Rxf5+ {[%clk 0:00:07]} 53. Kg6 {[%clk 0:00:07]}  Rf4 {[%clk 0:00:07]} 54. Re2 {[%clk 0:00:07]}  Rxh4 {[%clk 0:00:06]} 55. Kxh6 {[%clk 0:00:08]}  Kd7 {[%clk 0:00:07]} 56. Kg6 {[%clk 0:00:07]}  Rg4+ {[%clk 0:00:07]} 57. Kh7 {[%clk 0:00:07]}  Rh4 {[%clk 0:00:07]} 58. h6 {[%clk 0:00:07]}  Kd6 {[%clk 0:00:07]} 59. Kg7 {[%clk 0:00:07]}  Rg4+ {[%clk 0:00:08]} 60. Kh7 {[%clk 0:00:07]}  Rh4 {[%clk 0:00:08]} 61. Re8 {[%clk 0:00:07]}  Kd7 {[%clk 0:00:08]} 62. Re1 {[%clk 0:00:07]}  Kd6 {[%clk 0:00:09]} 63. Rg1 {[%clk 0:00:06]}  Ke7 {[%clk 0:00:08]} 64. Kg7 {[%clk 0:00:07]}  Ke6 {[%clk 0:00:05]} 65. h7 {[%clk 0:00:07]}  Rg4+ {[%clk 0:00:01]} 66. Rxg4 {[%clk 0:00:06]} 1-0


[Site "https://www.chess.com"]

[Event "Titled Tuesday Blitz August 16 Late 2022"]
[White "Lamaze, Simon"]
[Black "Swiercz, Dariusz"]
[WhiteFideId "36069264"]
[BlackFideId "1126881"]
[WhiteElo "2131"]
[BlackElo "2627"]
[Result "1/2-1/2"]
[Round "01"]
[TimeControl "180+1"]
[Date "2022.08.16"]
[WhiteClock "0:00:14"]
[BlackClock "0:00:07"]

1. d4 {[%clk 0:02:54]}  d5 {[%clk 0:02:55]} 2. c4 {[%clk 0:02:54]}  Nc6 {[%clk 0:02:55]} 3. Nc3 {[%clk 0:02:53]}  Nf6 {[%clk 0:02:55]} 4. Nf3 {[%clk 0:02:46]}  e6 {[%clk 0:02:51]} 5. Bg5 {[%clk 0:02:30]}  Be7 {[%clk 0:02:45]} 6. e3 {[%clk 0:02:29]}  O-O {[%clk 0:02:45]} 7. Bd3 {[%clk 0:02:26]}  h6 {[%clk 0:02:43]} 8. Bh4 {[%clk 0:02:24]}  Nb4 {[%clk 0:02:44]} 9. Be2 {[%clk 0:02:21]}  dxc4 {[%clk 0:02:44]} 10. Bxc4 {[%clk 0:02:21]}  b6 {[%clk 0:02:43]} 11. a3 {[%clk 0:02:18]}  Nbd5 {[%clk 0:02:43]} 12. Nxd5 {[%clk 0:02:08]}  Nxd5 {[%clk 0:02:36]} 13. Bxe7 {[%clk 0:02:07]}  Nxe7 {[%clk 0:02:37]} 14. O-O {[%clk 0:02:05]}  Bb7 {[%clk 0:02:37]} 15. Be2 {[%clk 0:02:06]}  Qd6 {[%clk 0:02:34]} 16. Rc1 {[%clk 0:02:05]}  Rac8 {[%clk 0:02:33]} 17. Qa4 {[%clk 0:02:04]}  Bc6 {[%clk 0:02:27]} 18. Qa6 {[%clk 0:01:57]}  Ng6 {[%clk 0:01:56]} 19. Rfd1 {[%clk 0:01:54]}  Bd5 {[%clk 0:01:28]} 20. Qxa7 {[%clk 0:01:47]}  f5 {[%clk 0:01:29]} 21. Qa6 {[%clk 0:01:34]}  f4 {[%clk 0:01:28]} 22. Qd3 {[%clk 0:01:34]}  Ne7 {[%clk 0:01:14]} 23. e4 {[%clk 0:01:32]}  Bb7 {[%clk 0:01:15]} 24. Ne5 {[%clk 0:01:26]}  c5 {[%clk 0:01:11]} 25. Nc4 {[%clk 0:01:24]}  Qc7 {[%clk 0:01:06]} 26. Bg4 {[%clk 0:01:07]}  Rf6 {[%clk 0:00:50]} 27. Rc3 {[%clk 0:00:32]}  Rd8 {[%clk 0:00:45]} 28. Ne5 {[%clk 0:00:21]}  Qb8 {[%clk 0:00:38]} 29. Nf3 {[%clk 0:00:21]}  cxd4 {[%clk 0:00:34]} 30. Rb3 {[%clk 0:00:18]}  e5 {[%clk 0:00:31]} 31. Rb5 {[%clk 0:00:14]}  Ng6 {[%clk 0:00:25]} 32. Bh5 {[%clk 0:00:13]}  Kh8 {[%clk 0:00:14]} 33. Bxg6 {[%clk 0:00:13]}  Rxg6 {[%clk 0:00:15]} 34. Nxe5 {[%clk 0:00:13]}  Rf6 {[%clk 0:00:16]} 35. Nf3 {[%clk 0:00:13]}  Ba6 {[%clk 0:00:16]} 36. e5 {[%clk 0:00:13]}  Bxb5 {[%clk 0:00:16]} 37. Qxb5 {[%clk 0:00:13]}  Re6 {[%clk 0:00:17]} 38. Qb3 {[%clk 0:00:13]}  Rde8 {[%clk 0:00:16]} 39. h3 {[%clk 0:00:13]}  Qb7 {[%clk 0:00:16]} 40. Rxd4 {[%clk 0:00:13]}  Rg6 {[%clk 0:00:15]} 41. Qd3 {[%clk 0:00:12]}  Ree6 {[%clk 0:00:14]} 42. Kh2 {[%clk 0:00:13]}  Qc6 {[%clk 0:00:12]} 43. Rd8+ {[%clk 0:00:13]}  Re8 {[%clk 0:00:11]} 44. Rd4 {[%clk 0:00:12]}  Rge6 {[%clk 0:00:09]} 45. Rxf4 {[%clk 0:00:12]}  Qc5 {[%clk 0:00:08]} 46. Qf5 {[%clk 0:00:11]}  Qxf2 {[%clk 0:00:07]} 47. Nh4 {[%clk 0:00:11]}  Qd2 {[%clk 0:00:06]} 48. Qg4 {[%clk 0:00:10]}  Qd3 {[%clk 0:00:05]} 49. Rf5 {[%clk 0:00:09]}  Kh7 {[%clk 0:00:04]} 50. b4 {[%clk 0:00:08]}  Rxe5 {[%clk 0:00:03]} 51. Rf3 {[%clk 0:00:08]}  Qc2 {[%clk 0:00:03]} 52. Nf5 {[%clk 0:00:07]}  Rxf5 {[%clk 0:00:03]} 53. Qxf5+ {[%clk 0:00:07]}  Qxf5 {[%clk 0:00:03]} 54. Rxf5 {[%clk 0:00:08]}  Re3 {[%clk 0:00:03]} 55. a4 {[%clk 0:00:06]}  Rb3 {[%clk 0:00:03]} 56. Rb5 {[%clk 0:00:06]}  Ra3 {[%clk 0:00:04]} 57. Rxb6 {[%clk 0:00:06]}  Rxa4 {[%clk 0:00:04]} 58. Rb7 {[%clk 0:00:07]}  Ra3 {[%clk 0:00:04]} 59. Kg1 {[%clk 0:00:07]}  Rb3 {[%clk 0:00:05]} 60. Kf2 {[%clk 0:00:08]}  h5 {[%clk 0:00:05]} 61. Kg1 {[%clk 0:00:07]}  h4 {[%clk 0:00:06]} 62. Kh2 {[%clk 0:00:08]}  Kh6 {[%clk 0:00:06]} 63. Rb5 {[%clk 0:00:08]}  g5 {[%clk 0:00:07]} 64. Kg1 {[%clk 0:00:09]}  Rb2 {[%clk 0:00:07]} 65. Kf1 {[%clk 0:00:09]}  Kg6 {[%clk 0:00:07]} 66. Rb8 {[%clk 0:00:09]}  Kg7 {[%clk 0:00:08]} 67. b5 {[%clk 0:00:10]}  Kh7 {[%clk 0:00:08]} 68. b6 {[%clk 0:00:10]}  Kg7 {[%clk 0:00:09]} 69. Ke1 {[%clk 0:00:10]}  Rxg2 {[%clk 0:00:08]} 70. Rd8 {[%clk 0:00:11]}  Rb2 {[%clk 0:00:08]} 71. Rd6 {[%clk 0:00:11]}  Rb3 {[%clk 0:00:08]} 72. Kd2 {[%clk 0:00:10]}  Rxh3 {[%clk 0:00:08]} 73. Kc2 {[%clk 0:00:10]}  Rh2+ {[%clk 0:00:07]} 74. Kc3 {[%clk 0:00:11]}  Rh1 {[%clk 0:00:08]} 75. Kc2 {[%clk 0:00:11]}  Rh2+ {[%clk 0:00:08]} 76. Rd2 {[%clk 0:00:11]}  Rxd2+ {[%clk 0:00:07]} 77. Kxd2 {[%clk 0:00:12]}  h3 {[%clk 0:00:08]} 78. b7 {[%clk 0:00:12]}  h2 {[%clk 0:00:09]} 79. b8=Q {[%clk 0:00:13]}  h1=Q {[%clk 0:00:09]} 80. Qe5+ {[%clk 0:00:14]}  Kg6 {[%clk 0:00:10]} 81. Qe6+ {[%clk 0:00:13]}  Kh5 {[%clk 0:00:09]} 82. Qf7+ {[%clk 0:00:13]}  Kg4 {[%clk 0:00:10]} 83. Qe6+ {[%clk 0:00:13]}  Kf4 {[%clk 0:00:09]} 84. Qf6+ {[%clk 0:00:13]}  Kg4 {[%clk 0:00:09]} 85. Qe6+ {[%clk 0:00:14]}  Kg3 {[%clk 0:00:09]} 86. Qe5+ {[%clk 0:00:14]}  Kg4 {[%clk 0:00:07]} 87. Qe6+ {[%clk 0:00:14]} 1/2-1/2


[Site "https://www.chess.com"]